bitfinex/quotes_SOLUSD_20220228
["timestamp","ask_amount","ask_price","bid_price","bid_amount"]
[1646068593897,1.86141561,94.459,94.346,167.19]
[1646068594099,2.09380243,94.494,94.353,167.19]
[1646068594300,4.237,94.499,94.361,167.19]
[1646068594501,4.237,94.496,94.371,167.19]
[1646068594700,4.237,94.496,94.381,62.69]
[1646068594901,23.5408,94.527,94.38,15.19]
[1646068594902,2.25755676,94.526,94.386,167.19]
[1646068595105,4.235,94.547,94.401,167.19]
[1646068595106,2.19648864,94.529,94.401,167.19]
[1646068595402,8.83743041,94.528,94.403,167.19]
[1646068595601,4.234,94.527,94.403,167.19]
[1646068596000,1.82499256,94.525,94.404,2.74678921]
[1646068596202,6.87,94.528,94.404,2.74678921]
[1646068596401,6.87,94.528,94.406,104.5]
[1646068596603,6.87,94.528,94.419,62.69]
[1646068596802,6.87,94.528,94.421,62.69]
[1646068597003,6.87,94.528,94.427,62.69]
[1646068597207,6.87,94.528,94.446,62.69]
[1646068597404,6.87,94.528,94.447,47.81757562]
[1646068598804,2.02428131,94.558,94.447,47.81757562]
[1646068599004,4.232,94.557,94.447,47.81757562]
[1646068599210,4.232,94.557,94.448,62.69]
[1646068599408,2.02428131,94.558,94.448,62.69]
[1646068599607,2.02428131,94.558,94.449,62.69]
[1646068599807,12.71,94.56,94.449,62.69]
[1646068600009,59.82217562,94.559,94.447,47.81757562]
[1646068600210,6.20915156,94.559,94.447,47.81757562]
[1646068600407,28.59312161,94.559,94.447,47.81757562]
[1646068600611,2.18438751,94.558,94.447,47.81757562]
[1646068600813,6.41638751,94.558,94.447,47.81757562]
[1646068601013,26.40797005,94.557,94.447,47.81757562]
[1646068601210,0.4,94.548,94.447,47.81757562]
[1646068601409,28.44197161,94.539,94.447,47.81757562]
[1646068601609,1.84633719,94.538,94.447,47.81757562]
[1646068601807,6.07933719,94.538,94.447,47.81757562]
[1646068602008,26.40797005,94.537,94.447,47.81757562]
[1646068602211,4.233,94.536,94.447,47.81757562]
[1646068602408,4.233,94.536,94.447,50.56436483]
[1646068602608,2.20196491,94.569,94.447,47.81757562]
[1646068602808,1.77191588,94.559,94.447,47.81757562]
[1646068603012,6.10411417,94.558,94.447,47.81757562]
[1646068603217,1.87211417,94.558,94.447,47.81757562]
[1646068603413,1.8143922,94.557,94.447,47.81757562]
[1646068603613,4.232,94.556,94.447,47.81757562]
[1646068603910,32.75570061,94.556,94.447,47.81757562]
[1646068604110,2.28023781,94.555,94.447,47.81757562]
[1646068604310,4.232,94.554,94.447,47.81757562]
[1646068604510,12.71,94.55,94.447,47.81757562]
[1646068604710,6.27127981,94.549,94.447,47.81757562]
[1646068605114,26.40797005,94.548,94.447,47.81757562]
[1646068605313,6.34219268,94.547,94.447,47.81757562]
[1646068605713,2.0339047,94.545,94.447,47.81757562]
[1646068605912,33.23706583,94.543,94.447,47.81757562]
[1646068606117,12.71,94.54,94.447,47.81757562]
[1646068606313,6.47901323,94.539,94.447,47.81757562]
[1646068606716,26.40797005,94.538,94.447,47.81757562]
[1646068606914,1.68681935,94.537,94.447,47.81757562]
[1646068607413,2.06503973,94.535,94.447,47.81757562]
[1646068607615,1.89396986,94.529,94.447,47.81757562]
[1646068607815,46.39615142,94.527,94.447,47.81757562]
[1646068608015,6.12498839,94.526,94.447,47.81757562]
[1646068608414,26.40797005,94.525,94.447,47.81757562]
[1646068608625,0.4,94.608,94.447,47.81757562]
[1646068608819,12.71,94.56,94.447,47.81757562]
[1646068609015,1.81179042,94.592,94.448,65.29764062]
[1646068609216,11.05715029,94.63,94.462,2.49476079]
[1646068609416,4.23,94.625,94.466,2.99971991]
[1646068609616,42.98718578,94.608,94.47,12.71]
[1646068609816,42.98718578,94.608,94.466,18.36104798]
[1646068609817,5.6217105,94.607,94.466,18.36104798]
[1646068610015,5.6217105,94.607,94.466,15.36132807]
[1646068610219,17.10636068,94.606,94.466,15.36132807]
[1646068610415,5.92175281,94.605,94.466,15.36132807]
[1646068610816,17.10636068,94.604,94.466,15.36132807]
[1646068611015,12.71,94.59,94.466,15.36132807]
[1646068611221,42.04371979,94.589,94.466,15.36132807]
[1646068611421,1.65238229,94.588,94.466,15.36132807]
[1646068611617,4.231,94.587,94.466,15.36132807]
[1646068612018,17.10636068,94.586,94.466,15.36132807]
[1646068612217,5.97625184,94.585,94.466,15.36132807]
[1646068612416,12.71,94.57,94.466,15.36132807]
[1646068612618,49.04008198,94.569,94.466,15.36132807]
[1646068612819,1.42135918,94.568,94.466,15.36132807]
[1646068613019,4.232,94.567,94.466,15.36132807]
[1646068615222,23.21029402,94.566,94.466,15.36132807]
[1646068615446,5.75400826,94.565,94.466,15.36132807]
[1646068615645,12.71,94.55,94.466,15.36132807]
[1646068615845,40.18391053,94.548,94.466,15.36132807]
[1646068616048,1.43410753,94.547,94.466,15.36132807]
[1646068617045,4.232,94.546,94.436,62.69]
[1646068617847,27.44229402,94.546,94.427,4.232]
[1646068618050,1.48720034,94.545,94.428,43.84316429]
[1646068618249,4.233,94.544,94.428,43.84316429]
[1646068618448,42.98718578,94.529,94.428,43.84316429]
[1646068618647,4.233,94.528,94.428,43.84316429]
[1646068618852,6.0927503,94.528,94.428,43.84316429]
[1646068619650,6.0927503,94.528,94.429,62.69]
[1646068619852,4.233,94.528,94.43,2.91496566]
[1646068620052,42.98718578,94.529,94.435,62.69]
[1646068621255,4.233,94.528,94.429,62.69]
[1646068621468,6.02097508,94.528,94.429,62.69]
[1646068621655,1.78797508,94.528,94.429,62.69]
[1646068622455,4.233,94.527,94.429,62.69]
[1646068622855,1.78797508,94.528,94.429,62.69]
[1646068623455,1.78797508,94.528,94.434,62.69]
[1646068623658,42.98718578,94.529,94.434,62.69]
[1646068623855,1.86147322,94.528,94.434,62.69]
[1646068624256,1.86147322,94.528,94.438,62.69]
[1646068624456,6.09447322,94.528,94.438,62.69]
[1646068625059,6.09447322,94.528,94.429,62.69]
[1646068625256,6.09447322,94.528,94.435,167.19]
[1646068625457,6.09447322,94.528,94.435,62.69]
[1646068626257,6.09447322,94.528,94.428,43.84316429]
[1646068626457,6.09447322,94.528,94.429,167.19]
[1646068626857,6.09447322,94.528,94.428,43.84316429]
[1646068627858,6.09447322,94.528,94.429,167.19]
[1646068628057,1.86147322,94.528,94.429,167.19]
[1646068628457,80.8705338,97.716,94.431,167.19]
[1646068628458,1.54212638,94.551,94.431,167.19]
[1646068628657,24.82383681,94.559,94.432,2.63214831]
[1646068628857,1.7077991,94.558,94.432,2.63214831]
[1646068629057,4.233,94.557,94.432,2.63214831]
[1646068629261,54.47546978,94.556,94.432,2.63214831]
[1646068629458,4.233,94.555,94.432,2.63214831]
[1646068629658,54.47546978,94.556,94.432,2.63214831]
[1646068630260,1.4900113,94.555,94.432,2.63214831]
[1646068630661,1.4900113,94.555,94.434,167.19]
[1646068630960,1.4900113,94.555,94.435,3.11565612]
[1646068631260,54.47546978,94.556,94.451,167.19]
[1646068631461,4.232,94.555,94.453,167.19]
[1646068631659,4.232,94.555,94.454,3.01220586]
[1646068631865,54.47546978,94.556,94.454,3.01220586]
[1646068632059,54.47546978,94.556,94.454,2.72127488]
[1646068632460,54.47546978,94.556,94.453,167.19]
[1646068632661,4.232,94.575,94.454,2.60438552]
[1646068633067,4.232,94.626,94.455,2.74678921]
[1646068633265,76.8895,94.642,94.455,2.74678921]
[1646068633266,5.62056965,94.638,94.471,167.19]
[1646068633462,5.62056965,94.638,94.481,167.19]
[1646068633662,54.41065214,94.637,94.483,167.19]
[1646068633865,5.93659053,94.636,94.484,2.7714796]
[1646068634064,8.68337974,94.636,94.484,2.7714796]
[1646068634470,5.93659053,94.636,94.484,2.7714796]
[1646068634665,2.74678921,94.635,94.484,2.7714796]
[1646068634865,4.23,94.634,94.484,2.7714796]
[1646068635065,12.71,94.63,94.484,2.7714796]
[1646068635267,5.99685729,94.629,94.484,2.7714796]
[1646068635465,8.7436465,94.629,94.484,2.7714796]
[1646068635665,8.7436465,94.629,94.483,167.19]
[1646068635868,19.65696068,94.628,94.483,167.19]
[1646068636066,5.65121978,94.627,94.483,167.19]
[1646068636268,5.65121978,94.627,94.484,2.93843086]
[1646068636667,23.97588323,94.626,94.484,2.93843086]
[1646068636869,5.74986532,94.625,94.484,2.93843086]
[1646068637071,12.71,94.62,94.484,2.93843086]
[1646068637269,34.51181505,94.619,94.484,2.93843086]
[1646068637469,1.48712839,94.618,94.484,2.93843086]
[1646068637869,2.74678921,94.617,94.484,2.93843086]
[1646068638569,4.23,94.616,94.484,2.93843086]
[1646068639168,4.23,94.617,94.484,2.93843086]
[1646068640470,2.74678921,94.616,94.484,2.93843086]
[1646068640670,4.23,94.615,94.484,2.93843086]
[1646068641271,4.23,94.617,94.484,2.93843086]
[1646068641470,1.48712839,94.618,94.484,2.93843086]
[1646068642067,1.48712839,94.618,94.483,167.19]
[1646068642275,4.23,94.617,94.483,167.19]
[1646068642668,4.23,94.617,94.483,62.69]
[1646068642868,19.84242735,94.616,94.483,62.69]
[1646068643069,6.04236598,94.615,94.483,62.69]
[1646068643468,48.35414624,94.599,94.483,62.69]
[1646068643669,5.91083527,94.598,94.483,62.69]
[1646068644071,1.67488932,94.597,94.482,43.84316429]
[1646068644269,4.231,94.596,94.482,43.84316429]
[1646068645074,4.231,94.596,94.456,48.6919]
[1646068645274,4.231,94.596,94.435,104.5]
[1646068645475,0.4,94.578,94.435,104.5]
[1646068645673,1.76770131,94.569,94.435,104.5]
[1646068645875,1.76770131,94.569,94.4,4.232]
[1646068645876,4.232,94.568,94.42,91.5991]
[1646068646074,1.46981558,94.566,94.421,119.77901623]
[1646068646275,4.233,94.565,94.421,119.77901623]
[1646068646679,45.03585033,94.549,94.421,119.77901623]
[1646068646975,6.04031576,94.548,94.423,62.69]
[1646068647377,6.04031576,94.548,94.424,167.19]
[1646068647574,6.04031576,94.548,94.421,57.08901623]
[1646068647975,19.84242735,94.547,94.421,57.08901623]
[1646068648176,5.86465988,94.546,94.421,57.08901623]
[1646068649776,19.84242735,94.545,94.421,57.08901623]
[1646068649980,5.89075272,94.544,94.421,57.08901623]
[1646068650176,12.71,94.53,94.421,57.08901623]
[1646068650377,45.89920312,94.529,94.421,57.08901623]
[1646068650575,1.62311562,94.528,94.421,57.08901623]
[1646068650778,4.233,94.527,94.421,57.08901623]
[1646068651580,1.62311562,94.528,94.422,62.69]
[1646068651780,2.84183692,94.613,94.421,57.08901623]
[1646068651781,1.63338399,94.577,94.425,104.5]
[1646068651983,1.42473804,94.631,94.428,62.69]
[1646068652281,12.71,94.62,94.44,62.69]
[1646068652484,15.5331,94.631,94.45,62.69]
[1646068652485,1.54943467,94.619,94.45,62.69]
[1646068652679,57.96622656,94.618,94.458,62.69]
[1646068652878,1.52902601,94.617,94.471,167.19]
[1646068653078,1.52902601,94.617,94.473,167.19]
[1646068653279,4.23,94.616,94.475,167.19]
[1646068653477,12.71,94.61,94.475,167.19]
[1646068653680,6.00374602,94.609,94.476,2.92447454]
[1646068654078,6.00374602,94.609,94.482,2.95112551]
[1646068654280,6.00374602,94.609,94.484,104.5]
[1646068654579,6.00374602,94.609,94.486,2.32208415]
[1646068654778,6.00374602,94.609,94.491,62.69]
[1646068654979,4.23,94.609,94.505,167.19]
[1646068655184,4.23,94.615,94.505,167.19]
[1646068655378,4.23,94.615,94.506,2.53006312]
[1646068657881,5.79872518,94.61,94.502,45.87812396]
[1646068658080,5.79872518,94.61,94.49,12.71]
[1646068658278,1.37622685,94.609,94.453,104.5]
[1646068658478,1.37622685,94.609,94.449,15.531]
[1646068658479,4.231,94.608,94.471,104.5]
[1646068658680,20.87493866,94.608,94.481,104.5]
[1646068658881,19.37362594,94.608,94.49,12.71]
[1646068659081,1.51448107,94.607,94.491,147.70449633]
[1646068659282,1.51448107,94.607,94.492,2.53344975]
[1646068659781,4.23,94.606,94.492,2.53344975]
[1646068660587,1.51448107,94.607,94.492,2.53344975]
[1646068660790,24.7877,94.617,94.493,167.19]
[1646068660988,24.7877,94.617,94.496,2.39375129]
[1646068661188,24.7877,94.617,94.511,187.16440736]
[1646068661387,53.73522656,94.618,94.511,187.16440736]
[1646068661591,53.73522656,94.618,94.521,167.19]
[1646068661787,53.73522656,94.618,94.522,2.27440096]
[1646068664208,53.73522656,94.618,94.524,2.43013166]
[1646068668211,11.05049042,94.649,94.524,2.43013166]
[1646068668508,4.228,94.678,94.561,104.5]
[1646068668708,1.71957344,94.744,94.571,167.19]
[1646068668709,4.227,94.71,94.571,167.19]
[1646068668908,4.226,94.713,94.572,2.29589574]
[1646068669110,4.226,94.743,94.581,167.19]
[1646068669307,45.83817688,94.712,94.582,3.00150061]
[1646068669509,5.76007174,94.711,94.582,3.00150061]
[1646068670307,4.226,94.711,94.582,3.00150061]
[1646068670507,5.72971139,94.711,94.582,3.00150061]
[1646068671109,4.226,94.711,94.582,3.00150061]
[1646068671307,45.83817688,94.712,94.582,3.00150061]
[1646068671308,45.83817688,94.712,94.583,2.74678921]
[1646068671708,45.83817688,94.712,94.591,167.19]
[1646068671909,45.83817688,94.712,94.601,167.19]
[1646068672111,45.83817688,94.712,94.602,2.60570776]
[1646068673110,45.83817688,94.712,94.603,2.74678921]
[1646068673513,45.83817688,94.712,94.603,169.93678921]
[1646068673710,45.83817688,94.712,94.605,167.19]
[1646068674209,45.83817688,94.712,94.623,167.19]
[1646068674409,45.83817688,94.712,94.631,167.19]
[1646068674709,45.83817688,94.712,94.632,2.37937285]
[1646068676712,1.41024494,94.768,94.632,2.37937285]
[1646068677311,62.6722,94.757,94.632,2.37937285]
[1646068677711,57.70438845,94.756,94.632,2.37937285]
[1646068679820,4.224,94.755,94.632,2.37937285]
[1646068680220,5.96689798,94.755,94.632,2.37937285]
[1646068680619,2.05492094,94.754,94.632,2.37937285]
[1646068680820,2.05492094,94.754,94.631,167.19]
[1646068680821,4.224,94.753,94.631,62.69]
[1646068681021,4.224,94.754,94.623,65.77081688]
[1646068681226,4.224,94.754,94.624,2.52255039]
[1646068681227,12.71,94.75,94.624,2.52255039]
[1646068681423,5.59192694,94.749,94.624,2.52255039]
[1646068681623,27.93831834,94.749,94.624,2.52255039]
[1646068681922,1.73575144,94.748,94.624,2.52255039]
[1646068682222,4.224,94.747,94.624,2.52255039]
[1646068682827,4.224,94.778,94.627,2.77247529]
[1646068683021,15.9628,94.766,94.641,82.66440736]
[1646068683223,70.2546,94.782,94.641,89.13440736]
[1646068683425,22.7371,94.782,94.643,62.69]
[1646068683627,22.7371,94.782,94.644,2.8239963]
[1646068684026,22.7371,94.782,94.645,2.74678921]
[1646068684527,22.7371,94.782,94.647,3.04523488]
[1646068684728,22.7371,94.782,94.663,62.69]
[1646068684932,22.7371,94.782,94.672,2.60423838]
[1646068685928,22.7371,94.782,94.673,62.69]
[1646068686136,5.88548657,94.817,94.674,3.05213149]
[1646068686332,19.7967,94.817,94.674,3.05213149]
[1646068686530,19.7967,94.817,94.675,77.952721]
[1646068686728,19.7967,94.817,94.676,2.55257746]
[1646068686928,45.61096652,94.816,94.691,62.69]
[1646068687134,45.61096652,94.816,94.693,62.69]
[1646068687332,45.61096652,94.816,94.694,2.84939046]
[1646068688132,45.61096652,94.816,94.696,62.69]
[1646068688331,45.61096652,94.816,94.711,62.69]
[1646068688533,45.61096652,94.816,94.721,62.69]
[1646068688732,45.61096652,94.816,94.722,2.51579888]
[1646068688935,16.1222,94.853,94.722,2.51579888]
[1646068689136,4.22,94.854,94.724,62.69]
[1646068689334,16.0875,94.863,94.725,2.88391588]
[1646068689534,4.219,94.862,94.726,62.69]
[1646068689734,15.8452,94.871,94.741,62.69]
[1646068689942,52.61382218,94.85,94.751,62.69]
[1646068690134,4.219,94.89,94.761,62.69]
[1646068690336,4.219,94.89,94.77,12.71]
[1646068690534,4.219,94.89,94.772,2.36344412]
[1646068690736,4.218,94.908,94.772,2.36344412]
[1646068690936,4.218,94.908,94.791,62.69]
[1646068691137,57.54877396,94.907,94.813,62.69]
[1646068691335,57.54877396,94.907,94.826,104.5]
[1646068691543,4.216,94.906,94.84,12.71]
[1646068691735,57.54877396,94.907,94.85,12.71]
[1646068691935,1.0940255,94.913,94.844,2.94077731]
[1646068692137,1.0940255,94.913,94.852,2.93418486]
[1646068692538,1.58387889,94.996,94.856,167.19]
[1646068692740,1.60587982,95.034,94.881,170.22013876]
[1646068692936,58.88262963,95.034,94.883,167.19]
[1646068693137,58.88262963,95.034,94.892,2.77250806]
[1646068693337,1.4104513,95.033,94.892,2.77250806]
[1646068693537,5.6224513,95.033,94.892,2.77250806]
[1646068694340,1.58509308,95.029,94.883,2.34175544]
[1646068694539,4.212,95.028,94.901,19.26997486]
[1646068694739,1.4037829,95.027,94.901,19.26997486]
[1646068694938,4.212,95.026,94.901,19.26997486]
[1646068695138,5.91246168,95.026,94.901,19.26997486]
[1646068695343,27.98354262,95.026,94.901,19.26997486]
[1646068695538,25.4309163,95.025,94.901,19.26997486]
[1646068695738,5.71355824,95.024,94.901,19.26997486]
[1646068696037,1.6377256,95.023,94.901,19.26997486]
[1646068696241,4.212,95.022,94.901,19.26997486]
[1646068696438,31.1520389,95.022,94.901,19.26997486]
[1646068696641,1.81175728,95.021,94.901,19.26997486]
[1646068696840,5.95980402,95.02,94.901,19.26997486]
[1646068697040,25.29067198,95.019,94.901,19.26997486]
[1646068697239,1.58519591,95.018,94.901,19.26997486]
[1646068697639,26.94273853,95.018,94.901,19.26997486]
[1646068697840,27.097887,95.017,94.901,19.26997486]
[1646068698060,5.76514088,95.016,94.901,19.26997486]
[1646068698262,31.1226835,95.016,94.901,19.26997486]
[1646068698461,29.56954262,95.016,94.902,169.89404455]
[1646068698665,25.29067198,95.019,94.903,2.50110534]
[1646068699461,27.15879945,95.019,94.903,2.50110534]
[1646068700063,1.44110618,95.018,94.901,19.26997486]
[1646068700561,5.89652947,95.017,94.901,19.26997486]
[1646068700760,9.21435574,95.017,94.902,2.96705886]
[1646068700962,25.35754262,95.016,94.902,2.96705886]
[1646068701363,1.45337014,95.015,94.902,2.96705886]
[1646068701566,1.45337014,95.015,94.901,19.26997486]
[1646068701567,4.212,95.014,94.901,2.86212692]
[1646068701766,16.49990297,95.014,94.901,2.33042265]
[1646068701962,10.98195425,95.013,94.859,3.03575965]
[1646068702164,12.71,95.01,94.87,12.71]
[1646068702364,1.65795124,95.009,94.87,12.71]
[1646068702566,4.213,95.008,94.872,2.3938606]
[1646068702765,16.50090297,95.008,94.872,2.3938606]
[1646068702965,16.50090297,95.008,94.871,2.44123202]
[1646068702966,1.8162356,95.007,94.871,2.44123202]
[1646068703165,0.4,94.999,94.822,2.34296405]
[1646068703364,12.71,94.99,94.822,2.34296405]
[1646068703563,1.40297785,94.988,94.822,2.34296405]
[1646068703763,4.214,94.987,94.822,2.34296405]
[1646068703963,4.214,94.987,94.824,2.46487529]
[1646068703964,1.52057704,94.985,94.824,2.46487529]
[1646068704163,12.71,94.97,94.824,2.46487529]
[1646068704367,27.68824322,94.968,94.824,2.46487529]
[1646068704563,0.4,94.959,94.824,2.46487529]
[1646068704765,12.71,94.95,94.824,2.46487529]
[1646068704965,52.86091067,94.948,94.824,2.46487529]
[1646068705166,52.86091067,94.948,94.825,2.55636476]
[1646068705563,52.86091067,94.948,94.83,12.71]
[1646068707866,52.86091067,94.948,94.835,62.69]
[1646068708167,52.86091067,94.948,94.837,2.8326574]
[1646068708466,52.86091067,94.948,94.84,12.71]
[1646068709667,52.86091067,94.948,94.841,167.19]
[1646068709867,52.86091067,94.948,94.842,2.43327864]
[1646068711871,52.86091067,94.948,94.845,2.63718718]
[1646068712869,52.86091067,94.948,94.848,2.48566744]
[1646068713071,52.86091067,94.948,94.861,167.19]
[1646068713271,52.86091067,94.948,94.86,12.71]
[1646068713272,52.86091067,94.948,94.863,167.19]
[1646068713468,52.86091067,94.948,94.864,2.43764508]
[1646068714673,8.6,94.97,94.87,158.87]
[1646068714871,8.6,94.97,94.88,12.71]
[1646068715171,70.5284,95.039,94.882,3.01107639]
[1646068715369,4.212,95.038,94.882,3.01107639]
[1646068715570,43.67509108,95.037,94.884,167.19]
[1646068715770,4.212,95.036,94.885,2.58935899]
[1646068716070,4.212,95.036,94.901,167.19]
[1646068716269,4.212,95.036,94.903,167.19]
[1646068716469,4.212,95.036,94.904,2.65977171]
[1646068716671,4.212,95.036,94.905,167.19]
[1646068716970,43.67509108,95.037,94.923,167.19]
[1646068717176,0.5286555,95.04,94.923,167.19]
[1646068717470,0.5286555,95.04,94.922,18.1021048]
[1646068717471,0.5286555,95.04,94.952,2.62830778]
[1646068717669,0.5286555,95.04,94.962,2.3224528]
[1646068718071,0.5286555,95.04,94.964,167.19]
[1646068718270,0.5286555,95.04,94.965,2.42528266]
[1646068718476,0.5286555,95.04,94.981,167.19]
[1646068718672,0.5286555,95.04,94.983,167.19]
[1646068718873,0.5286555,95.04,94.984,2.95374246]
[1646068719874,0.5286555,95.04,94.986,167.19]
[1646068720075,0.5286555,95.04,95.001,167.19]
[1646068720274,0.5286555,95.04,95.013,62.69]
[1646068720275,0.0086555,95.04,95.013,62.69]
[1646068720474,0.0086555,95.04,95.014,3.0050531]
[1646068720673,0.0086555,95.04,95.021,167.19]
[1646068720876,0.0086555,95.04,95.022,2.70877244]
[1646068721675,0.0086555,95.04,95.001,2.36281209]
[1646068721874,0.0086555,95.04,94.993,2.71434392]
[1646068722074,0.0086555,95.04,94.99,12.71]
[1646068722477,0.0086555,95.04,94.992,62.69]
[1646068722775,0.0086555,95.04,95.004,167.19]
[1646068723074,0.0086555,95.04,95.007,62.69]
[1646068723276,0.0086555,95.04,95.008,2.82443192]
[1646068723475,0.0086555,95.04,95.021,62.69]
[1646068723676,0.0086555,95.04,95.027,62.69]
[1646068724175,0.0086555,95.04,95.035,62.69]
[1646068724376,0.0086555,95.04,95.036,2.57319046]
[1646068725978,0.0086555,95.04,95.037,1.25326002]
[1646068728281,24.1199,95.14,95.039,167.19]
[1646068728482,24.1199,95.14,95.041,167.19]
[1646068728686,24.1199,95.14,95.042,3.11175114]
[1646068729282,1.47176721,95.138,95.045,2.44826448]
[1646068730283,48.89820236,95.139,95.059,104.5]
[1646068730485,48.89820236,95.139,95.065,110.92000212]
[1646068730685,48.89820236,95.139,95.065,107.98663588]
[1646068730885,48.89820236,95.139,95.066,3.08428335]
[1646068731284,48.89820236,95.139,95.041,2.44073209]
[1646068731485,5.58927807,95.138,95.031,2.36783795]
[1646068731709,5.77019765,95.138,95.02,12.71]
[1646068731886,26.99427319,95.137,95.013,2.6392953]
[1646068732086,5.83309062,95.136,95.015,62.69]
[1646068732290,1.62609062,95.136,95.016,2.67476489]
[1646068732490,1.62609062,95.136,95.022,2.84566366]
[1646068732687,48.89820236,95.139,95.036,104.5]
[1646068732887,48.89820236,95.139,95.047,62.69]
[1646068733086,48.89820236,95.139,95.048,3.02716429]
[1646068733688,48.89820236,95.139,95.053,167.19]
[1646068733889,48.89820236,95.139,95.054,2.4498954]
[1646068740219,48.89820236,95.139,95.054,65.1398954]
[1646068740415,48.89820236,95.139,95.049,2.83250056]
[1646068741317,1.45138486,95.138,95.049,2.83250056]
[1646068741515,5.50949164,95.138,95.049,2.83250056]
[1646068741715,4.206,95.137,95.049,2.83250056]
[1646068741915,7.68691096,95.137,95.049,2.83250056]
[1646068742115,4.05810678,95.136,95.049,2.83250056]
[1646068742317,26.99427319,95.136,95.049,2.83250056]
[1646068743016,1.43392929,95.137,95.049,2.83250056]
[1646068744317,4.206,95.136,95.049,2.83250056]
[1646068744716,0.50942785,95.064,95.049,2.83250056]
[1646068744918,0.50942785,95.064,95.049,65.52250056]
[1646068745117,0.50942785,95.064,95.05,2.39512272]
[1646068748023,0.50942785,95.064,95.051,4.18875932]
[1646068748219,0.50942785,95.064,95.05,2.39512272]
[1646068749021,0.50942785,95.064,95.016,2.28291641]
[1646068749222,0.50942785,95.064,95.016,52.88743047]
[1646068749422,0.50942785,95.064,95.017,2.37040066]
[1646068750021,0.50942785,95.064,94.996,2.70283275]
[1646068750222,0.50942785,95.064,94.991,62.69]
[1646068750423,0.50942785,95.064,94.992,3.01410694]
[1646068751025,0.50942785,95.064,95.013,48.34025181]
[1646068751227,0.50942785,95.064,95.014,7.18021871]
[1646068752725,0.50942785,95.064,95.014,4.206]
[1646068753930,0.50942785,95.064,94.985,2.5626837]
[1646068753931,0.50942785,95.064,95.015,44.54378483]
[1646068754132,0.50942785,95.064,95.016,2.5111622]
[1646068754432,0.50942785,95.064,95.023,167.19]
[1646068754632,0.50942785,95.064,95.024,2.93565726]
[1646068755037,48.89820236,95.104,95.024,2.42622941]
[1646068756141,48.89820236,95.104,95.006,2.62129872]
[1646068757139,48.89820236,95.104,95.023,167.19]
[1646068757340,48.89820236,95.104,95.025,62.69]
[1646068757540,48.89820236,95.104,95.033,167.19]
[1646068757939,48.89820236,95.104,95.034,2.65289116]
[1646068758739,48.89820236,95.104,95.026,2.68533508]
[1646068759240,48.89820236,95.104,95.033,167.19]
[1646068759439,24.91427319,95.138,95.034,2.48154125]
[1646068759840,4.206,95.157,95.041,167.19]
[1646068760040,4.206,95.16,95.042,2.85738091]
[1646068760441,53.84654352,95.159,95.044,167.19]
[1646068760645,53.84654352,95.159,95.045,2.43127528]
[1646068761642,4.206,95.158,95.045,2.43127528]
[1646068761845,29.12027319,95.158,95.045,2.43127528]
[1646068762847,6.0730237,95.158,95.045,2.43127528]
[1646068763147,29.12027319,95.158,95.045,2.43127528]
[1646068763343,1.56431113,95.157,95.045,2.43127528]
[1646068763545,4.206,95.156,95.045,2.43127528]
[1646068763744,29.12027319,95.156,95.045,2.43127528]
[1646068763945,29.12027319,95.156,95.046,62.69]
[1646068764153,24.91427319,95.155,95.023,2.70862094]
[1646068764348,5.81152802,95.154,95.023,2.70862094]
[1646068764946,24.91427319,95.153,95.04,62.69]
[1646068765147,53.84654352,95.159,95.041,2.73650329]
[1646068765347,4.206,95.158,95.041,2.73650329]
[1646068765749,53.84654352,95.159,95.041,2.73650329]
[1646068766147,24.29027319,95.158,95.041,62.69]
[1646068766345,24.29027319,95.158,95.042,2.37792411]
[1646068766546,3.8593962,95.157,95.043,167.19]
[1646068766745,4.206,95.156,95.044,3.0007687]
[1646068767146,3.8593962,95.155,95.044,3.0007687]
[1646068767346,4.206,95.154,95.044,3.0007687]
[1646068767546,4.206,95.154,95.038,2.56321748]
[1646068767749,1.49481032,95.153,95.038,2.56321748]
[1646068768047,5.5925149,95.152,95.026,2.97130034]
[1646068768250,1.64100184,95.149,95.002,2.63088706]
[1646068768449,4.207,95.148,95.002,2.63088706]
[1646068768748,32.35666939,95.148,95.002,2.63088706]